fUST/lending_fUST_20250802
["ID","MTS","AMOUNT","RATE_DAILY","PERIOD"]
[376823195,1754132911513,286.0,0.0002729,120]
[376823196,1754132911970,289.89,0.0002728,120]
[376823197,1754132916002,400.0,0.00024658,120]
[376823198,1754132916340,400.0,0.00027397,120]
[376823199,1754132970750,200.0,0.00026294,120]
[376823200,1754132976650,167.0,0.00024,120]
[376823581,1754133038217,-532.44284578,0.00023987,2]
[376823582,1754133038228,-533.55715422,0.00023987,2]
[376823583,1754133038239,-200.0,0.00023987,2]
[376823584,1754133038249,-300.0,0.00023988,2]
[376823585,1754133038258,-300.0,0.00023988,2]
[376823586,1754133038266,-300.0,0.00023988,2]
[376823587,1754133038275,-1200.0,0.00023988,2]
[376823588,1754133038284,-300.0,0.00023988,2]
[376823589,1754133038293,-500.0,0.00023989,2]
[376823590,1754133038302,-500.0,0.00023989,2]
[376823591,1754133038311,-500.0,0.00023989,2]
[376823592,1754133038320,-500.0,0.00023989,2]
[376823593,1754133038328,-500.0,0.00023989,2]
[376823594,1754133038338,-500.0,0.00023989,2]
[376823596,1754133038347,-400.5698971,0.00023989,2]
[376823597,1754133038356,-151.214,0.00023989,5]
[376823598,1754133038366,-1714.73206371,0.00023989,2]
[376823601,1754133038377,-755.8897517,0.00023989,2]
[376823603,1754133038392,-685.09124,0.00023989,2]
[376823605,1754133038403,-11334.89694459,0.00023989,2]
[376823607,1754133038413,-52660.06376728,0.0002399,2]
[376823610,1754133038428,-47339.93623272,0.0002399,2]
[376823612,1754133038437,-1380.85,0.00024,7]
[376823614,1754133038447,-7853.39013578,0.00024073,2]
[376823616,1754133038456,-619.71562775,0.00024073,2]
[376823618,1754133038465,-265.99,0.00024145,3]
[376823620,1754133038474,-797.97,0.00024145,3]
[376823622,1754133038483,-500.0,0.00024153,2]
[376823624,1754133038495,-500.0,0.00024153,2]
[376823626,1754133038504,-248.95656061,0.00024153,2]
[376823628,1754133038514,-234.84699795,0.00024154,2]
[376823629,1754133038524,-500.0,0.00024154,2]
[376823631,1754133038533,-500.0,0.00024154,2]
[376823633,1754133038543,-500.0,0.00024154,2]
[376823635,1754133038552,-500.0,0.00024154,2]
[376823637,1754133038561,-500.0,0.00024154,2]
[376823639,1754133038571,-622.05566144,0.00024154,2]
[376823641,1754133038581,-500.0,0.00024154,2]
[376823643,1754133038589,-500.0,0.00024154,2]
[376823645,1754133038599,-500.0,0.00024154,2]
[376823647,1754133038608,-500.0,0.00024154,2]
[376823649,1754133038617,-500.0,0.00024154,2]
[376823651,1754133038626,-500.0,0.00024154,2]
[376823653,1754133038635,-500.0,0.00024154,2]
[376823654,1754133038644,-500.0,0.00024154,2]
[376823656,1754133038653,-500.0,0.00024154,2]
[376823658,1754133038663,-500.0,0.00024154,2]
[376823661,1754133038672,-500.0,0.00024154,2]
[376823662,1754133038682,-575.91001073,0.00024154,2]
[376823664,1754133038691,-575.91001073,0.00024154,2]
[376823666,1754133038700,-575.91001073,0.00024154,2]
[376823668,1754133038709,-575.91001073,0.00024154,2]
[376823670,1754133038719,-575.91001073,0.00024154,2]
[376823672,1754133038729,-575.91001073,0.00024154,2]
[376823674,1754133038743,-575.91001073,0.00024154,2]
[376823676,1754133038754,-575.91001073,0.00024154,2]
[376823678,1754133038765,-370000.0,0.00024155,2]
[376823680,1754133038775,-500.0,0.00024173,2]
[376823682,1754133038785,-382.62938764,0.00024173,2]
[376823684,1754133038795,-500.0,0.00024173,2]
[376823686,1754133038804,-500.0,0.00024173,2]
[376823688,1754133038813,-500.0,0.00024173,2]
[376823690,1754133038822,-500.0,0.00024173,2]
[376823692,1754133038832,-591.982,0.00024173,2]
[376823694,1754133038843,-5468.93,0.000242,7]
[376823696,1754133038853,-2663.5,0.000242,7]
[376823698,1754133038862,-37444.14,0.000242,2]
[376823700,1754133038871,-1000.0,0.00024254,2]
[376823701,1754133038880,-1061.93867965,0.00024254,2]
[376823703,1754133038889,-12646.87439643,0.00024262,2]
[376823705,1754133038899,-2823.61012016,0.00024312,2]
[376823707,1754133038908,-151.0,0.000244,8]
[376823709,1754133038917,-500.0,0.00024423,2]
[376823711,1754133038927,-200.0,0.00024468,15]
[376823713,1754133038936,-200.0,0.00024468,15]
[376823715,1754133038946,-200.0,0.00024468,15]
[376823717,1754133038955,-200.0,0.00024468,15]
[376823719,1754133038965,-200.0,0.00024468,15]
[376823721,1754133038975,-151.0,0.000245,5]
[376823723,1754133038986,-151.0,0.000245,6]
[376823725,1754133038997,-150.0,0.00024545,2]
[376823727,1754133039007,-212.07,0.0002458,7]
[376823729,1754133039016,-151.55,0.00024599,7]
[376823731,1754133039026,-151.0,0.000246,5]
[376823733,1754133039035,-161.65,0.00024605,7]
[376823735,1754133039044,-1648.86,0.00024641,7]
[376823737,1754133039053,-200.0,0.00024658,2]
[376823739,1754133039062,-151.55,0.00024699,7]
[376823740,1754133039210,-151.0,0.000247,10]
[376823741,1754133039221,-161.65,0.00024705,7]
[376823742,1754133039230,-500.0,0.00024721,2]
[376823743,1754133039242,-1000.0,0.00024721,2]
[376823744,1754133039251,-500.0,0.00024721,2]
[376823745,1754133039261,-1648.86,0.00024741,7]
[376823746,1754133039270,-619.71562775,0.00024742,2]
[376823747,1754133039279,-151.55,0.00024799,7]
[376823748,1754133039288,-17868.8881929,0.000248,2]
[376823749,1754133039298,-151.0,0.000248,9]
[376823750,1754133039307,-151.0,0.000248,7]
[376823751,1754133039316,-161.65,0.00024805,7]
[376823752,1754133039326,-1648.86,0.00024841,7]
[376823753,1754133039335,-501.6487974,0.00024873,2]
[376823754,1754133039344,-502.85679222,0.00024873,2]
[376823755,1754133039354,-500.0,0.00024873,2]
[376823756,1754133039363,-500.0,0.00024873,2]
[376823757,1754133039373,-11371.1106682,0.0002489,2]
[376823758,1754133039385,-151.55,0.00024899,7]
[376823759,1754133039394,-504638.374977,0.000249,2]
[376823760,1754133039404,-160.0,0.00024905,2]
[376823761,1754133039413,-161.65,0.00024905,7]
[376823762,1754133039423,-1848.29553696,0.00024913,2]
[376823763,1754133039432,-1648.86,0.00024941,7]
[376823764,1754133039441,-970.0,0.00024958,2]
[376823765,1754133039451,-635.0,0.00024958,2]
[376823766,1754133039461,-407.0,0.00024984,2]
[376823767,1754133039470,-1624.44438117,0.0002499,2]
[376823768,1754133039480,-151.55,0.00024999,7]
[376823769,1754133039491,-10452.395258,0.00025,4]
[376823770,1754133039500,-161.65,0.00025005,7]
[376823771,1754133039510,-441.49406934,0.00025022,2]
[376823772,1754133039519,-441.4172062,0.00025022,2]
[376823773,1754133039528,-1648.88,0.00025041,7]
[376823774,1754133039538,-151.55,0.00025099,7]
[376823775,1754133039547,-161.67,0.00025105,7]
[376823776,1754133039557,-151.55,0.00025199,7]
[376823777,1754133039567,-341.61102503,0.00025245,2]
[376823778,1754133039576,-151.55,0.00025299,7]
[376823779,1754133039585,-14490.61,0.00025359,4]
[376823780,1754133039594,-250.0,0.00025373,2]
[376823781,1754133039604,-2147.0,0.00025373,2]
[376823782,1754133039613,-151.55,0.00025399,7]
[376823783,1754133039622,-619.71562775,0.00025411,2]
[376823784,1754133039631,-1000.0,0.00025421,2]
[376823785,1754133039641,-1021.44997196,0.00025421,2]
[376823786,1754133039652,-500.0,0.00025427,2]
[376823787,1754133039661,-260.0,0.00025453,2]
[376823788,1754133039670,-7853.39013578,0.00025487,2]
[376823789,1754133039679,-151.55,0.00025499,7]
[376823790,1754133039688,-531.98,0.00025515,3]
[376823791,1754133039697,-500.0,0.00025571,2]
[376823792,1754133039706,-500.0,0.00025586,2]
[376823793,1754133039726,-151.55,0.00025599,7]
[376823794,1754133039737,-500.0,0.00025611,2]
[376823795,1754133039747,-500.0,0.00025644,2]
[376823797,1754133039757,-500.0,0.00025651,2]
[376823798,1754133039766,-500.0,0.00025689,2]
[376823799,1754133039775,-151.55,0.00025699,7]
[376823800,1754133039785,-1380.85,0.000257,7]
[376823801,1754133039794,-500.0,0.00025744,2]
[376823802,1754133039804,-151.55,0.00025799,7]
[376823803,1754133039814,-2663.5,0.000258,7]
[376823805,1754133039823,-37444.14,0.000258,2]
[376823807,1754133039833,-500.0,0.00025875,2]
[376823810,1754133039843,-1624.44438117,0.0002589,2]
[376823813,1754133039853,-151.55,0.00025899,7]
[376823815,1754133039862,-708.16620632,0.00025966,5]
[376823818,1754133039872,-1500.0,0.00025968,2]
[376823821,1754133039882,-151.55,0.00025999,7]
[376823824,1754133039892,-360.0,0.00026001,2]
[376823827,1754133039902,-420.0,0.00026014,2]
[376823830,1754133039911,-619.71562775,0.0002608,2]
[376823833,1754133039921,-151.55,0.00026099,7]
[376823836,1754133039931,-1680.0,0.00026133,2]
[376823839,1754133039941,-501.31243587,0.00026217,2]
[376823842,1754133039951,-601.7120757,0.00026227,2]
[376823845,1754133039961,-500.0,0.00026305,2]
[376823848,1754133039970,-160.12652981,0.00026329,2]
[376823851,1754133039979,-500.0,0.00026356,2]
[376823854,1754133039991,-160.0,0.0002643,2]
[376823857,1754133040000,-500.0,0.00026446,2]
[376823860,1754133040010,-1765.97627738,0.00026469,2]
[376823863,1754133040019,-371.16669433,0.000265,2]
[376823866,1754133040028,-1087.94852092,0.00026516,2]
[376823869,1754133040043,-912.05147908,0.00026516,2]
[376823873,1754133040052,-460.0,0.00026549,2]
[376823876,1754133040061,-500.0,0.00026576,2]
[376823879,1754133040071,-500.0,0.00026576,2]
[376823882,1754133040080,-630.0,0.00026576,2]
[376823884,1754133040090,-151.0,0.00026576,2]
[376823886,1754133040099,-154.19217065,0.00026576,2]
[376823888,1754133040108,-151.0,0.00026576,2]
[376823890,1754133040117,-151.0,0.00026576,2]
[376823892,1754133040126,-151.0,0.00026576,2]
[376823894,1754133040140,-500.0,0.00026576,2]
[376823896,1754133040150,-151.0,0.00026576,2]
[376823898,1754133040159,-151.0,0.00026576,2]
[376823900,1754133040169,-151.0,0.00026576,2]
[376823902,1754133040178,-151.0,0.00026576,2]
[376823904,1754133040188,-151.0,0.000266,14]
[376823906,1754133040198,-500.0,0.00026607,2]
[376823908,1754133040207,-206.0,0.0002663,2]
[376823910,1754133040217,-213.181622,0.00026676,2]
[376823912,1754133040227,-156.886461,0.00026708,3]
[376823914,1754133040237,-156.886461,0.00026708,2]
[376823916,1754133040246,-2200.0,0.00026713,2]
[376823918,1754133040255,-14490.61,0.00026729,6]
[376823921,1754133040266,-170.4289651,0.00026749,2]
[376823924,1754133040275,-619.71562775,0.00026749,2]
[376823926,1754133040284,-200.0,0.00026842,15]
[376823928,1754133040294,-200.0,0.00026842,15]
[376823930,1754133040304,-200.0,0.00026842,15]
[376823932,1754133040314,-200.0,0.00026842,15]
[376823934,1754133040323,-200.0,0.00026842,15]
[376823936,1754133040333,-200.0,0.00026842,15]
[376823938,1754133040342,-200.0,0.00026842,15]
[376823940,1754133040352,-460.94536757,0.00026849,10]
[376823942,1754133040361,-460.0,0.00026849,10]
[376823944,1754133040371,-460.0,0.00026849,10]
[376823946,1754133040380,-460.0,0.00026849,10]
[376823948,1754133040389,-460.0,0.00026849,10]
[376823949,1754133040399,-460.0,0.00026849,10]
[376823950,1754133040408,-460.0,0.00026849,10]
[376823951,1754133040417,-601.07884967,0.00026849,10]
[376823952,1754133040427,-460.0,0.00026849,10]
[376823954,1754133040437,-460.0,0.00026849,10]
[376823956,1754133040446,-460.0,0.00026849,10]
[376823958,1754133040455,-500.0,0.00026849,10]
[376823960,1754133040464,-500.0,0.00026849,10]
[376823962,1754133040473,-500.0,0.00026849,10]
[376823964,1754133040482,-500.0,0.00026849,10]
[376823966,1754133040494,-500.0,0.00026849,10]
[376823968,1754133040503,-552.05,0.00026849,10]
[376823970,1754133040513,-460.0,0.00026849,10]
[376823972,1754133040522,-489.19,0.00026849,10]
[376823974,1754133040531,-460.0,0.00026849,10]
[376823977,1754133040541,-460.0,0.00026849,10]
[376823980,1754133040550,-460.0,0.00026849,10]
[376823982,1754133040559,-463.00998728,0.00026849,10]
[376823987,1754133040569,-460.0,0.00026849,10]
[376823989,1754133040579,-460.0,0.00026849,10]
[376823992,1754133040588,-460.0,0.00026849,10]
[376823995,1754133040598,-460.0,0.00026849,10]
[376823997,1754133040608,-460.0,0.00026849,10]
[376824000,1754133040617,-164.09919153,0.00026849,10]
[376824003,1754133040626,-460.0,0.00026849,10]
[376824006,1754133040635,-460.0,0.00026849,10]
[376824009,1754133040644,-411.17606372,0.00026849,10]
[376824012,1754133040654,-460.0,0.00026849,10]
[376824016,1754133040663,-460.0,0.00026849,10]
[376824019,1754133040673,-460.0,0.00026849,10]
[376824022,1754133040682,-460.0,0.00026849,10]
[376824025,1754133040691,-460.0,0.00026849,10]
[376824028,1754133040700,-175.86896416,0.00026849,10]
[376824031,1754133040710,-460.0,0.00026849,10]
[376824034,1754133040719,-460.0,0.00026849,10]
[376824037,1754133040731,-460.0,0.00026849,10]
[376824040,1754133040741,-460.0,0.00026849,10]
[376824043,1754133040750,-460.0,0.00026849,10]
[376824046,1754133040759,-256.17722334,0.00026849,10]
[376824049,1754133040769,-460.0,0.00026849,10]
[376824052,1754133040778,-460.0,0.00026849,10]
[376824055,1754133040788,-460.0,0.00026849,10]
[376824059,1754133040801,-460.0,0.00026849,10]
[376824062,1754133040810,-460.0,0.00026849,10]
[376824065,1754133040820,-460.0,0.00026849,10]
[376824068,1754133040829,-460.0,0.00026849,10]
[376824071,1754133040838,-460.0,0.00026849,10]
[376824073,1754133040847,-460.0,0.00026849,10]
[376824075,1754133040856,-446.8784505,0.00026849,10]
[376824077,1754133040865,-460.0,0.00026849,10]
[376824079,1754133040874,-460.0,0.00026849,10]
[376824082,1754133040885,-460.0,0.00026849,10]
[376824084,1754133040894,-460.0,0.00026849,10]
[376824086,1754133040904,-460.0,0.00026849,10]
[376824088,1754133040913,-460.0,0.00026849,10]
[376824089,1754133040922,-460.0,0.00026849,10]
[376824091,1754133040931,-460.0,0.00026849,10]
[376824093,1754133040941,-460.0,0.00026849,10]
[376824095,1754133040949,-460.0,0.00026849,10]
[376824097,1754133040958,-460.0,0.00026849,10]
[376824099,1754133040968,-460.0,0.00026849,10]
[376824101,1754133040977,-460.0,0.00026849,10]
[376824103,1754133040986,-460.0,0.00026849,10]
[376824105,1754133040996,-460.0,0.00026849,10]
[376824107,1754133041005,-460.0,0.00026849,10]
[376824109,1754133041014,-460.0,0.00026849,10]
[376824111,1754133041023,-460.0,0.00026849,10]
[376824113,1754133041032,-203.90720996,0.00026849,10]
[376824114,1754133041041,-460.0,0.00026849,10]
[376824116,1754133041050,-460.0,0.00026849,10]
[376824118,1754133041059,-460.0,0.00026849,10]
[376824120,1754133041068,-460.0,0.00026849,10]
[376824122,1754133041077,-536.95,0.00026849,10]
[376824123,1754133041086,-460.0,0.00026849,10]
[376824124,1754133041095,-194.33686655,0.00026849,10]
[376824125,1754133041104,-460.0,0.00026849,10]
[376824127,1754133041114,-440.27256305,0.00026849,10]
[376824128,1754133041123,-460.0,0.00026849,10]
[376824130,1754133041132,-460.0,0.00026849,10]
[376824132,1754133041146,-460.0,0.00026849,10]
[376824134,1754133041156,-181.63424312,0.00026849,10]
[376824136,1754133041165,-460.0,0.00026849,10]
[376824138,1754133041174,-460.0,0.00026849,10]
[376824141,1754133041184,-460.0,0.00026849,10]
[376824143,1754133041193,-461.28859171,0.00026849,10]
[376824146,1754133041203,-460.0,0.00026849,10]
[376824149,1754133041212,-460.0,0.00026849,10]
[376824152,1754133041223,-460.0,0.00026849,10]
[376824155,1754133041232,-460.0,0.00026849,10]
[376824158,1754133041242,-460.0,0.00026849,10]
[376824161,1754133041252,-493.13280124,0.00026849,10]
[376824164,1754133041261,-460.0,0.00026849,10]
[376824167,1754133041270,-460.0,0.00026849,10]
[376824170,1754133041280,-470.18179991,0.00026849,10]
[376824173,1754133041289,-460.0,0.00026849,10]
[376824176,1754133041298,-460.0,0.00026849,10]
[376824179,1754133041308,-460.0,0.00026849,10]
[376824181,1754133041317,-460.0,0.00026849,10]
[376824183,1754133041326,-460.0,0.00026849,10]
[376824185,1754133041335,-460.0,0.00026849,10]
[376824187,1754133041344,-460.0,0.00026849,10]
[376824189,1754133041354,-460.0,0.00026849,10]
[376824191,1754133041363,-268.9,0.00026849,10]
[376824193,1754133041373,-460.0,0.00026849,10]
[376824195,1754133041382,-460.0,0.00026849,10]
[376824197,1754133041391,-158.52,0.00026849,10]
[376824199,1754133041401,-460.0,0.00026849,10]
[376824201,1754133041411,-460.0,0.00026849,10]
[376824203,1754133041421,-244.9121723,0.00026849,10]
[376824205,1754133041430,-460.0,0.00026849,10]
[376824207,1754133041438,-756.95,0.00026849,10]
[376824209,1754133041449,-400.18258629,0.00026849,10]
[376824211,1754133041458,-756.95,0.00026849,10]
[376824213,1754133041467,-756.95,0.00026849,10]
[376824215,1754133041476,-756.95,0.00026849,10]
[376824217,1754133041486,-756.95,0.00026849,10]
[376824218,1754133041495,-756.95,0.00026849,10]
[376824220,1754133041504,-756.95,0.00026849,10]
[376824222,1754133041514,-756.95,0.00026849,10]
[376824224,1754133041522,-756.95,0.00026849,10]
[376824226,1754133041531,-756.95,0.00026849,10]
[376824228,1754133041540,-756.95,0.00026849,10]
[376824230,1754133041549,-756.95,0.00026849,10]
[376824233,1754133041559,-756.95,0.00026849,10]
[376824235,1754133041569,-756.95,0.00026849,10]
[376824237,1754133041580,-756.95,0.00026849,10]
[376824239,1754133041589,-756.95,0.00026849,10]
[376824241,1754133041598,-460.0,0.00026849,10]
[376824243,1754133041607,-756.95,0.00026849,10]
[376824245,1754133041617,-756.95,0.00026849,10]
[376824246,1754133041626,-756.95,0.00026849,10]
[376824249,1754133041636,-756.95,0.00026849,10]
[376824250,1754133041645,-756.95,0.00026849,10]
[376824252,1754133041654,-756.95,0.00026849,10]
[376824254,1754133041663,-460.0,0.00026849,10]
[376824256,1754133041672,-460.0,0.00026849,10]
[376824258,1754133041681,-756.95,0.00026849,10]
[376824260,1754133041690,-757.03201112,0.00026849,10]
[376824262,1754133041700,-460.0,0.00026849,10]
[376824264,1754133041709,-460.0,0.00026849,10]
[376824266,1754133041718,-460.0,0.00026849,10]
[376824268,1754133041727,-460.0,0.00026849,10]
[376824271,1754133041738,-166.83171779,0.00026849,10]
[376824273,1754133041748,-460.0,0.00026849,10]
[376824275,1754133041757,-460.0,0.00026849,10]
[376824277,1754133041766,-460.0,0.00026849,10]
[376824279,1754133041775,-460.0,0.00026849,10]
[376824281,1754133041784,-460.0,0.00026849,10]
[376824295,1754133041908,-460.0,0.00026849,10]
[376824297,1754133041918,-460.0,0.00026849,10]
[376824298,1754133041927,-460.0,0.00026849,10]
[376824300,1754133041936,-460.0,0.00026849,10]
[376824302,1754133041945,-460.0,0.00026849,10]
[376824304,1754133041955,-460.0,0.00026849,10]
[376824306,1754133041964,-460.0,0.00026849,10]
[376824308,1754133041974,-460.0,0.00026849,10]
[376824310,1754133041983,-460.0,0.00026849,10]
[376824312,1754133041994,-460.0,0.00026849,10]
[376824314,1754133042003,-460.0,0.00026849,10]
[376824316,1754133042012,-460.0,0.00026849,10]
[376824318,1754133042021,-460.0,0.00026849,10]
[376824320,1754133042031,-460.0,0.00026849,10]
[376824322,1754133042042,-460.0,0.00026849,10]
[376824324,1754133042051,-460.0,0.00026849,10]
[376824326,1754133042060,-460.0,0.00026849,10]
[376824328,1754133042070,-460.0,0.00026849,10]
[376824330,1754133042080,-460.0,0.00026849,10]
[376824332,1754133042089,-460.0,0.00026849,10]
[376824334,1754133042098,-460.0,0.00026849,10]
[376824336,1754133042107,-460.0,0.00026849,10]
[376824338,1754133042116,-460.0,0.00026849,10]
[376824340,1754133042125,-460.0,0.00026849,10]
[376824342,1754133042135,-460.0,0.00026849,10]
[376824344,1754133042148,-460.0,0.00026849,10]
[376824346,1754133042160,-460.0,0.00026849,10]
[376824348,1754133042169,-460.0,0.00026849,10]
[376824350,1754133042179,-312.16666667,0.00026849,10]
[376824352,1754133042188,-460.0,0.00026849,10]
[376824354,1754133042197,-460.0,0.00026849,10]
[376824356,1754133042207,-460.0,0.00026849,10]
[376824358,1754133042217,-460.0,0.00026849,10]
[376824360,1754133042227,-460.0,0.00026849,10]
[376824362,1754133042236,-460.0,0.00026849,10]
[376824364,1754133042248,-460.0,0.00026849,10]
[376824366,1754133042258,-460.0,0.00026849,10]
[376824368,1754133042268,-460.0,0.00026849,10]
[376824370,1754133042277,-460.0,0.00026849,10]
[376824372,1754133042287,-460.0,0.00026849,10]
[376824374,1754133042296,-460.0,0.00026849,10]
[376824376,1754133042305,-460.0,0.00026849,10]
[376824378,1754133042314,-460.0,0.00026849,10]
[376824380,1754133042323,-460.0,0.00026849,10]
[376824382,1754133042332,-460.0,0.00026849,10]
[376824384,1754133042341,-460.0,0.00026849,10]
[376824386,1754133042350,-460.0,0.00026849,10]
[376824388,1754133042359,-347.12730531,0.00026849,10]
[376824390,1754133042368,-460.0,0.00026849,10]
[376824392,1754133042377,-460.0,0.00026849,10]
[376824393,1754133042386,-460.0,0.00026849,10]
[376824396,1754133042396,-460.0,0.00026849,10]
[376824398,1754133042405,-460.0,0.00026849,10]
[376824399,1754133042414,-460.0,0.00026849,10]
[376824401,1754133042423,-195.98645433,0.00026849,10]
[376824403,1754133042433,-460.0,0.00026849,10]
[376824405,1754133042442,-460.0,0.00026849,10]
[376824407,1754133042452,-460.0,0.00026849,10]
[376824409,1754133042461,-460.0,0.00026849,10]
[376824411,1754133042470,-460.0,0.00026849,10]
[376824413,1754133042479,-460.0,0.00026849,10]
[376824415,1754133042490,-460.0,0.00026849,10]
[376824417,1754133042499,-460.0,0.00026849,10]
[376824419,1754133042508,-460.0,0.00026849,10]
[376824421,1754133042526,-460.0,0.00026849,10]
[376824423,1754133042545,-460.0,0.00026849,10]
[376824425,1754133042563,-599.42932843,0.00026849,10]
[376824427,1754133042572,-460.0,0.00026849,10]
[376824429,1754133042581,-460.0,0.00026849,10]
[376824431,1754133042590,-460.0,0.00026849,10]
[376824433,1754133042600,-460.0,0.00026849,10]
[376824435,1754133042609,-460.0,0.00026849,10]
[376824437,1754133042618,-460.0,0.00026849,10]
[376824439,1754133042628,-227.24,0.00026849,10]
[376824441,1754133042637,-460.0,0.00026849,10]
[376824443,1754133042646,-460.0,0.00026849,10]
[376824445,1754133042667,-460.0,0.00026849,10]
[376824447,1754133042681,-460.0,0.00026849,10]
[376824451,1754133042691,-460.0,0.00026849,10]
[376824452,1754133042700,-460.0,0.00026849,10]
[376824454,1754133042710,-460.0,0.00026849,10]
[376824456,1754133042719,-460.0,0.00026849,10]
[376824458,1754133042728,-460.0,0.00026849,10]
[376824460,1754133042737,-460.0,0.00026849,10]
[376824462,1754133042748,-460.0,0.00026849,10]
[376824464,1754133042757,-460.0,0.00026849,10]
[376824466,1754133042766,-460.0,0.00026849,10]
[376824469,1754133042775,-460.0,0.00026849,10]
[376824471,1754133042784,-460.0,0.00026849,10]
[376824474,1754133042793,-295.425,0.00026849,10]
[376824476,1754133042802,-460.0,0.00026849,10]
[376824478,1754133042813,-460.0,0.00026849,10]
[376824480,1754133042822,-460.0,0.00026849,10]
[376824482,1754133042832,-460.0,0.00026849,10]
[376824484,1754133042841,-460.0,0.00026849,10]
[376824486,1754133042850,-460.0,0.00026849,10]
[376824488,1754133042859,-462.46808827,0.00026849,10]
[376824490,1754133042868,-436.1602882,0.00026849,10]
[376824492,1754133042878,-460.0,0.00026849,10]
[376824494,1754133042887,-460.0,0.00026849,10]
[376824496,1754133042896,-527.02465094,0.00026849,10]
[376824498,1754133042905,-460.0,0.00026849,10]
[376824500,1754133042915,-460.0,0.00026849,10]
[376824502,1754133042924,-460.0,0.00026849,10]
[376824504,1754133042933,-460.0,0.00026849,10]
[376824506,1754133042942,-5549.43,0.00026849,10]
[376824508,1754133042951,-460.0,0.00026849,10]
[376824510,1754133042961,-460.0,0.00026849,10]
[376824512,1754133042971,-5549.43,0.00026849,10]
[376824514,1754133042980,-460.0,0.00026849,10]
[376824515,1754133042990,-5549.43,0.00026849,10]
[376824517,1754133042999,-5549.43,0.00026849,10]
[376824519,1754133043009,-431.31,0.00026849,10]
[376824521,1754133043018,-5549.43,0.00026849,10]
[376824523,1754133043027,-5549.43,0.00026849,10]
[376824525,1754133043036,-5549.43,0.00026849,10]
[376824527,1754133043045,-5549.43,0.00026849,10]
[376824529,1754133043054,-5549.43,0.00026849,10]
[376824531,1754133043063,-460.0,0.00026849,10]
[376824533,1754133043072,-460.0,0.00026849,10]
[376824535,1754133043081,-5549.43,0.00026849,10]
[376824537,1754133043090,-5549.43,0.00026849,10]
[376824539,1754133043099,-5549.43,0.00026849,10]
[376824541,1754133043108,-5549.43,0.00026849,10]
[376824543,1754133043119,-5549.43,0.00026849,10]
[376824545,1754133043132,-5549.43,0.00026849,10]
[376824548,1754133043149,-5549.43,0.00026849,10]
[376824550,1754133043161,-460.0,0.00026849,10]
[376824553,1754133043174,-5549.43,0.00026849,10]
[376824555,1754133043185,-460.0,0.00026849,10]
[376824557,1754133043196,-5549.43,0.00026849,10]
[376824559,1754133043206,-5549.43,0.00026849,10]
[376824561,1754133043220,-5549.43,0.00026849,10]
[376824563,1754133043232,-460.0,0.00026849,10]
[376824566,1754133043244,-5549.43,0.00026849,10]
[376824568,1754133043255,-460.0,0.00026849,10]